[Event "HUN-ch-Women KO 2019"]
[Site "Budapest"]
[Date "2019.12.17"]
[Round "2.3"]
[White "Gara, Ticia"]
[Black "Gara, Anita"]
[Result "1-0"]
[ECO "A05"]
[WhiteElo "2339"]
[BlackElo "2350"]
[Annotator "NA"]
[PlyCount "91"]
[EventDate "2019.12.10"]
[EventType "k.o."]
[EventCountry "HUN"]
[SourceTitle "playchess.com"]
[Source "ChessBase"]
[SourceQuality "1"]
[TimeControl "900+5"]

1. Nf3 {[%emt 0:00:04]} Nf6 {[%emt 0:00:01]} 2. c4 {[%emt 0:00:19]} d6 {[%emt 0:00:06]} 3. g3 {[%emt 0:00:19]} g6 {[%emt 0:00:04]} 4. b3 {[%emt 0:00:03]} Bg7 {[%emt 0:00:03]} 5. Bb2 {[%emt 0:00:01]} O-O {[%emt 0:00:08]} 6. Bg2 {[%emt 0:00:07]} e5 {[%emt 0:00:43]} 7. O-O {[%emt 0:00:16]} c6 {[%emt 0:00:06]} 8. h3 {[%emt 0:01:40]} a5 {[%emt 0:00:05]} 9. Nc3 {[%emt 0:00:20]} Na6 {[%emt 0:00:09]} 10. d4 {[%emt 0:00:12]} e4 {[%emt 0:01:09]} 11. Nd2 {[%emt 0:00:05]} d5 {[%emt 0:00:39]} 12. cxd5 {[%emt 0:01:16]} cxd5 {[%emt 0:00:02]} 13. Rc1 {[%emt 0:01:58]} Re8 {[%emt 0:00:14]} 14. Na4 {[%emt 0:00:46]} e3 {[%emt 0:01:17]} 15. fxe3 {[%emt 0:00:02]} Rxe3 {[%emt 0:00:05]} 16. Rf3 {[%emt 0:00:07]} Bh6 {[%emt 0:01:13]} 17. Rc3 {[%emt 0:00:25]} Rxc3 {[%emt 0:01:29]} 18. Nxc3 {[%emt 0:01:05]} Bf5 {[%emt 0:00:44]} 19. g4 {[%emt 0:01:25]} Be4 {[%emt 0:02:02]} 20. Ncxe4 {[%emt 0:01:52]} dxe4 {[%emt 0:00:02]} 21. Rxf6 {[%emt 0:00:51]} Qxf6 {[%emt 0:00:27]} 22. Nxe4 {[%emt 0:00:01]} Qb6 {[%emt 0:00:48]} 23. Kh1 {[%emt 0:00:02]} Bg7 {[%emt 0:00:07]} 24. g5 {[%emt 0:00:36]} Rd8 {[%emt 0:00:20]} 25. e3 {[%emt 0:00:14]} Nb4 {[%emt 0:00:09]} 26. Qf3 {[%emt 0:00:30]} Nd5 {[%emt 0:00:34]} 27. Ba3 {[%emt 0:00:42]} Qc7 {[%emt 0:00:44]} 28. Nd6 {[%emt 0:00:32]} Nb4 {[%emt 0:01:42]} 29. Nxb7 {[%emt 0:00:09]} Re8 {[%emt 0:00:15]} 30. Nc5 {[%emt 0:00:34]} Nc2 {[%emt 0:00:10]} 31. Bc1 {[%emt 0:00:03]} Nxd4 {[%emt 0:00:53]} 32. exd4 {[%emt 0:00:21]} Bxd4 {[%emt 0:00:09]} 33. Nd3 {[%emt 0:00:12]} Qc2 {[%emt 0:00:33]} 34. Bf4 {[%emt 0:00:23]} Qb1+ {[%emt 0:00:10]} 35. Qf1 {[%emt 0:00:09]} Qxa2 {[%emt 0:00:08]} 36. Bd5 {[%emt 0:00:04]} Qe2 {[%emt 0:00:17]} 37. Qxe2 {[%emt 0:00:05]} Rxe2 {[%emt 0:00:02]} 38. Bc7 {[%emt 0:00:08]} Bc3 {[%emt 0:00:07]} 39. Bc4 {[%emt 0:00:06]} Kg7 {[%emt 0:00:06]} 40. Kg1 {[%emt 0:00:06]} f6 {[%emt 0:00:05]} 41. gxf6+ {[%emt 0:00:04]} Kxf6 {[%emt 0:00:06]} 42. Nf4 {[%emt 0:00:06]} Re1+ {[%emt 0:00:04]} 43. Kf2 {[%emt 0:00:01]} Rc1 {[%emt 0:00:09]} 44. Nd5+ {[%emt 0:00:02]} Kg5 {[%emt 0:00:06]} 45. Bf4+ {[%emt 0:00:05]} Kf5 {[%emt 0:00:05]} 46. Bxc1 {[%emt 0:00:01]} 1-0

[Event "HUN-ch-Women KO 2019"]
[Site "Budapest"]
[Date "2019.12.17"]
[Round "2.3"]
[White "Papp, Petra"]
[Black "Lazarne Vajda, Szidonia"]
[Result "1/2-1/2"]
[ECO "C41"]
[WhiteElo "2339"]
[BlackElo "2333"]
[Annotator "NA"]
[PlyCount "65"]
[EventDate "2019.12.10"]
[EventType "k.o."]
[EventCountry "HUN"]
[SourceTitle "playchess.com"]
[Source "ChessBase"]
[SourceQuality "1"]
[TimeControl "900+5"]

1. e4 {[%emt 0:00:06]} e5 {[%emt 0:00:07]} 2. Nf3 {[%emt 0:00:04]} d6 {[%emt 0:00:25]} 3. d4 {[%emt 0:00:08]} exd4 {[%emt 0:00:20]} 4. Nxd4 {[%emt 0:00:14]} Nf6 {[%emt 0:00:02]} 5. Nc3 {[%emt 0:00:07]} Be7 {[%emt 0:00:05]} 6. g3 {[%emt 0:00:22]} O-O {[%emt 0:00:11]} 7. Bg2 {[%emt 0:00:03]} Nc6 {[%emt 0:00:04]} 8. O-O {[%emt 0:00:15]} Bd7 {[%emt 0:00:22]} 9. h3 {[%emt 0:00:33]} Re8 {[%emt 0:00:07]} 10. Re1 {[%emt 0:00:55]} Nxd4 {[%emt 0:00:15]} 11. Qxd4 {[%emt 0:00:02]} Bc6 {[%emt 0:00:01]} 12. Be3 {[%emt 0:01:19]} Nd7 {[%emt 0:00:06]} 13. Qd2 {[%emt 0:00:24]} Bf6 {[%emt 0:00:10]} 14. Bd4 {[%emt 0:00:19]} Bxd4 {[%emt 0:00:11]} 15. Qxd4 {[%emt 0:00:02]} Qf6 {[%emt 0:00:11]} 16. Qxf6 {[%emt 0:00:51]} Nxf6 {[%emt 0:00:02]} 17. Nd5 {[%emt 0:00:05]} Bxd5 {[%emt 0:00:22]} 18. exd5 {[%emt 0:00:02]} Kf8 {[%emt 0:00:01]} 19. f4 {[%emt 0:00:17]} Rxe1+ {[%emt 0:00:05]} 20. Rxe1 {[%emt 0:00:01]} Re8 {[%emt 0:00:00]} 21. Rxe8+ {[%emt 0:00:08]} Kxe8 {[%emt 0:00:01]} 22. Kf2 {[%emt 0:00:05]} Ke7 {[%emt 0:00:09]} 23. Ke3 {[%emt 0:00:04]} h6 {[%emt 0:00:23]} 24. Bf3 {[%emt 0:00:17]} Nd7 {[%emt 0:00:02]} 25. Kd4 {[%emt 0:00:28]} g6 {[%emt 0:00:48]} 26. b4 {[%emt 0:00:06]} f5 {[%emt 0:00:30]} 27. c4 {[%emt 0:00:12]} b6 {[%emt 0:00:16]} 28. a3 {[%emt 0:01:24]} a5 {[%emt 0:00:05]} 29. Bd1 {[%emt 0:00:57]} axb4 {[%emt 0:00:33]} 30. axb4 {[%emt 0:00:02]} Nf6 {[%emt 0:01:14]} 31. Bf3 {[%emt 0:00:11]} Nd7 {[%emt 0:00:17]} 32. Bd1 {[%emt 0:00:05]} Nf6 {[%emt 0:00:05]} 33. Bf3 {[%emt 0:00:13]} 1/2-1/2

[Event "HUN-ch-Women KO 2019"]
[Site "Budapest"]
[Date "2019.12.17"]
[Round "2.4"]
[White "Gara, Anita"]
[Black "Gara, Ticia"]
[Result "1/2-1/2"]
[ECO "B56"]
[WhiteElo "2350"]
[BlackElo "2339"]
[Annotator "NA"]
[PlyCount "64"]
[EventDate "2019.12.10"]
[EventType "k.o."]
[EventCountry "HUN"]
[SourceTitle "playchess.com"]
[Source "ChessBase"]
[SourceQuality "1"]
[TimeControl "900+5"]

1. e4 {[%emt 0:00:01]} c5 {[%emt 0:00:02]} 2. Nf3 {[%emt 0:00:02]} d6 {[%emt 0:00:02]} 3. d4 {[%emt 0:00:04]} cxd4 {[%emt 0:00:02]} 4. Nxd4 {[%emt 0:00:01]} Nf6 {[%emt 0:00:03]} 5. Nc3 {[%emt 0:00:02]} Nc6 {[%emt 0:00:02]} 6. g3 {[%emt 0:00:22]} g6 {[%emt 0:00:28]} 7. Bg2 {[%emt 0:00:06]} Nxd4 {[%emt 0:00:10]} 8. Qxd4 {[%emt 0:00:02]} Bg7 {[%emt 0:00:03]} 9. Bg5 {[%emt 0:00:52]} O-O {[%emt 0:00:06]} 10. Qd2 {[%emt 0:00:08]} Be6 {[%emt 0:01:35]} 11. O-O {[%emt 0:00:14]} Qb6 {[%emt 0:00:21]} 12. Rab1 {[%emt 0:00:33]} Rac8 {[%emt 0:00:11]} 13. Be3 {[%emt 0:01:07]} Qa5 {[%emt 0:00:54]} 14. Bd4 {[%emt 0:01:02]} Rfd8 {[%emt 0:00:28]} 15. f4 {[%emt 0:01:22]} Bc4 {[%emt 0:00:36]} 16. Rfd1 {[%emt 0:02:09]} Ng4 {[%emt 0:02:10]} 17. b4 {[%emt 0:06:29]} Bxd4+ {[%emt 0:01:06]} 18. Qxd4 {[%emt 0:00:04]} Qb6 {[%emt 0:01:00]} 19. Qxb6 {[%emt 0:00:44]} axb6 {[%emt 0:00:01]} 20. Bh3 {[%emt 0:00:12]} h5 {[%emt 0:01:03]} 21. Rd2 {[%emt 0:00:02]} Be6 {[%emt 0:00:28]} 22. Nd5 {[%emt 0:00:44]} Bxd5 {[%emt 0:00:08]} 23. exd5 {[%emt 0:00:01]} Rc7 {[%emt 0:00:21]} 24. Rb3 {[%emt 0:00:28]} Rdc8 {[%emt 0:00:20]} 25. Rb2 {[%emt 0:00:04]} Rc3 {[%emt 0:00:16]} 26. Re2 {[%emt 0:00:05]} R8c7 {[%emt 0:00:19]} 27. a4 {[%emt 0:00:08]} Ne3 {[%emt 0:00:53]} 28. a5 {[%emt 0:00:04]} Nxd5 {[%emt 0:00:12]} 29. Bg2 {[%emt 0:00:03]} Ne3 {[%emt 0:00:48]} 30. axb6 {[%emt 0:00:05]} Rd7 {[%emt 0:00:11]} 31. Bf3 {[%emt 0:00:05]} Nc4 {[%emt 0:00:55]} 32. Rb3 {[%emt 0:00:06]} Rxb3 {[%emt 0:00:12]} 1/2-1/2

[Event "HUN-ch-Women KO 2019"]
[Site "Budapest"]
[Date "2019.12.17"]
[Round "2.4"]
[White "Lazarne Vajda, Szidonia"]
[Black "Papp, Petra"]
[Result "1-0"]
[ECO "E62"]
[WhiteElo "2333"]
[BlackElo "2339"]
[Annotator "NA"]
[PlyCount "101"]
[EventDate "2019.12.10"]
[EventType "k.o."]
[EventCountry "HUN"]
[SourceTitle "playchess.com"]
[Source "ChessBase"]
[SourceQuality "1"]
[TimeControl "900+5"]

1. d4 {[%emt 0:00:05]} Nf6 {[%emt 0:00:12]} 2. Nf3 {[%emt 0:00:03]} g6 {[%emt 0:00:04]} 3. g3 {[%emt 0:00:07]} Bg7 {[%emt 0:00:02]} 4. Bg2 {[%emt 0:00:01]} O-O {[%emt 0:00:04]} 5. O-O {[%emt 0:00:03]} d6 {[%emt 0:00:42]} 6. c4 {[%emt 0:00:12]} Nc6 {[%emt 0:00:15]} 7. Nc3 {[%emt 0:00:14]} e5 {[%emt 0:00:03]} 8. dxe5 {[%emt 0:00:33]} dxe5 {[%emt 0:00:08]} 9. Qxd8 {[%emt 0:00:43]} Rxd8 {[%emt 0:00:12]} 10. Bg5 {[%emt 0:01:05]} Be6 {[%emt 0:00:44]} 11. Nd2 {[%emt 0:01:02]} Ne7 {[%emt 0:04:48]} 12. Rfd1 {[%emt 0:00:57]} c6 {[%emt 0:00:36]} 13. Nde4 {[%emt 0:01:01]} Nxe4 {[%emt 0:00:51]} 14. Nxe4 {[%emt 0:00:02]} Rxd1+ {[%emt 0:01:37]} 15. Rxd1 {[%emt 0:00:02]} Nf5 {[%emt 0:00:34]} 16. b3 {[%emt 0:00:01]} h6 {[%emt 0:00:12]} 17. Bc1 {[%emt 0:00:06]} b6 {[%emt 0:01:50]} 18. Nc3 {[%emt 0:00:55]} Rc8 {[%emt 0:00:19]} 19. Ba3 {[%emt 0:00:53]} Bf8 {[%emt 0:00:05]} 20. Bxf8 {[%emt 0:00:13]} Kxf8 {[%emt 0:00:01]} 21. e3 {[%emt 0:00:06]} Ke7 {[%emt 0:00:10]} 22. Kf1 {[%emt 0:00:40]} h5 {[%emt 0:00:06]} 23. Ke2 {[%emt 0:00:07]} h4 {[%emt 0:00:03]} 24. Be4 {[%emt 0:00:57]} Nd6 {[%emt 0:00:11]} 25. Bf3 {[%emt 0:00:24]} hxg3 {[%emt 0:00:41]} 26. hxg3 {[%emt 0:00:02]} Bd7 {[%emt 0:00:04]} 27. Rh1 {[%emt 0:00:30]} Kf6 {[%emt 0:00:28]} 28. a4 {[%emt 0:02:17]} a5 {[%emt 0:00:24]} 29. Rd1 {[%emt 0:00:29]} Ke7 {[%emt 0:00:03]} 30. Ne4 {[%emt 0:00:15]} Nxe4 {[%emt 0:00:04]} 31. Bxe4 {[%emt 0:00:01]} c5 {[%emt 0:00:09]} 32. Rh1 {[%emt 0:00:16]} Bg4+ {[%emt 0:00:13]} 33. f3 {[%emt 0:00:04]} Be6 {[%emt 0:00:06]} 34. Bd5 {[%emt 0:00:06]} Kf6 {[%emt 0:00:21]} 35. e4 {[%emt 0:00:07]} Rf8 {[%emt 0:00:22]} 36. Ke3 {[%emt 0:00:42]} Bc8 {[%emt 0:00:01]} 37. f4 {[%emt 0:00:05]} Re8 {[%emt 0:00:29]} 38. Rh7 {[%emt 0:00:04]} Be6 {[%emt 0:00:07]} 39. Kf3 {[%emt 0:00:15]} Re7 {[%emt 0:00:08]} 40. Rh8 {[%emt 0:00:05]} Rd7 {[%emt 0:00:10]} 41. Rb8 {[%emt 0:00:19]} Rd6 {[%emt 0:00:01]} 42. Rb7 {[%emt 0:00:03]} Bd7 {[%emt 0:00:27]} 43. Ke3 {[%emt 0:00:11]} Be6 {[%emt 0:00:03]} 44. Rb8 {[%emt 0:00:25]} Bd7 {[%emt 0:00:15]} 45. fxe5+ {[%emt 0:00:12]} Kxe5 {[%emt 0:00:01]} 46. Bxf7 {[%emt 0:00:03]} g5 {[%emt 0:00:10]} 47. Bd5 {[%emt 0:00:10]} g4 {[%emt 0:00:03]} 48. Rh8 {[%emt 0:00:21]} Rg6 {[%emt 0:00:12]} 49. Rh7 {[%emt 0:00:10]} Bc6 {[%emt 0:00:07]} 50. Bxc6 {[%emt 0:00:09]} Rf6 {[%emt 0:00:06]} 51. Rh5+ {[%emt 0:00:05]} 1-0

[Event "HUN-ch-Women KO 2019"]
[Site "Budapest"]
[Date "2019.12.19"]
[Round "3.1"]
[White "Lazarne Vajda, Szidonia"]
[Black "Gara, Ticia"]
[Result "1/2-1/2"]
[ECO "D78"]
[WhiteElo "2333"]
[BlackElo "2339"]
[Annotator "ChessBase"]
[PlyCount "39"]
[EventDate "2019.12.10"]
[EventType "k.o."]
[EventCountry "HUN"]
[SourceTitle "playchess.com"]
[Source "ChessBase"]
[SourceQuality "1"]
[TimeControl "40/5400+30:1800+30"]

1. d4 {[%emt 0:01:46]} Nf6 {[%emt 0:00:30]} 2. Nf3 {[%emt 0:01:30]} g6 {[%emt 0:01:33]} 3. g3 {[%emt 0:00:45]} Bg7 {[%emt 0:00:24]} 4. Bg2 {[%emt 0:00:42]} O-O {[%emt 0:01:06]} 5. O-O {[%emt 0:00:46]} d5 {[%emt 0:01:02]} 6. c4 {[%emt 0:01:10]} c6 {[%emt 0:01:49]} 7. Qb3 {[%emt 0:03:03]} Qb6 {[%emt 0:02:48]} 8. Nc3 {[%emt 0:01:42]} Rd8 {[%emt 0:03:14]} 9. Qxb6 {[%emt 0:07:04]} axb6 {[%emt 0:01:42]} 10. cxd5 {[%emt 0:00:09]} Nxd5 {[%emt 0:00:42]} 11. Nxd5 {[%emt 0:01:45]} Rxd5 {[%emt 0:00:57]} 12. e4 {[%emt 0:01:13]} Rda5 {[%emt 0:03:52]} 13. a3 {[%emt 0:02:07]} c5 {[%emt 0:02:04]} 14. d5 {[%emt 0:00:43]} Na6 {[%emt 0:05:50]} 15. Rd1 {[%emt 0:04:13]} Bg4 {[%emt 0:05:41]} 16. d6 {[%emt 0:03:12]} exd6 {[%emt 0:01:55]} 17. Rxd6 {[%emt 0:00:14]} Rb5 {[%emt 0:04:08]} 18. h3 {[%emt 0:02:59]} Bxf3 {[%emt 0:01:47]} 19. Bxf3 {[%emt 0:00:06]} c4 {[%emt 0:02:56]} 20. Be2 {[%emt 0:03:45]} 1/2-1/2

[Event "HUN-ch-Women KO 2019"]
[Site "Budapest"]
[Date "2019.12.20"]
[Round "3.2"]
[White "Gara, Ticia"]
[Black "Lazarne Vajda, Szidonia"]
[Result "1/2-1/2"]
[ECO "C50"]
[WhiteElo "2339"]
[BlackElo "2333"]
[Annotator "NA"]
[PlyCount "52"]
[EventDate "2019.12.10"]
[EventType "k.o."]
[EventCountry "HUN"]
[SourceTitle "playchess.com"]
[Source "ChessBase"]
[SourceQuality "1"]
[TimeControl "40/5400+30:1800+30"]

{[%evp 8,39,17,17,22,15,11,18,10,15,12,12,36,5,20,26,16,15,0,0,21,11,18,13,4,0,20,33,56,34,38,52,49,21]} 1. e4 {[%emt 0:00:33]} e5 {[%emt 0:01:06]} 2. Nf3 {[%emt 0:00:30]} Nc6 {[%emt 0:00:43]} 3. Bc4 {[%emt 0:01:20]} Bc5 {[%emt 0:01:21]} 4. O-O {[%emt 0:00:43]} Nf6 {[%emt 0:00:21]} 5. d3 {[%emt 0:00:13]} O-O {[%emt 0:00:34]} 6. c3 {[%emt 0:01:15]} d6 {[%emt 0:02:47]} 7. h3 {[%emt 0:00:47]} a6 {[%emt 0:00:53]} 8. Re1 {[%emt 0:00:52]} Ba7 {[%emt 0:00:46]} 9. a4 {[%emt 0:01:02]} Ne7 {[%emt 0:02:13]} 10. Nbd2 {[%emt 0:01:03]} Ng6 {[%emt 0:02:14] C54: Giuoco Piano: 4 c3 Nf6, main lines with 5 d4 and 5 d3} 11. Nf1 {[%emt 0:01:08]} c6 {[%emt 0:11:14]} (11... Be6 12. Bxe6 fxe6 13. Ng3 h6 14. d4 Nd7 15. Be3 Qe7 16. a5 Kh7 17. Nd2 Rf7 18. Nc4 {½-½ (57) Caruana,F (2822)-Nakamura,H (2769) Stavanger 2018}) 12. Ng3 {[%emt 0:02:48]} d5 {[%emt 0:17:17]} 13. Bb3 {[%emt 0:03:43]} h6 {[%emt 0:09:18]} 14. exd5 {[%emt 0:08:28]} Nxd5 {[%emt 0:01:10]} 15. d4 {[%emt 0:01:19]} exd4 {[%emt 0:07:54]} 16. Nxd4 {[%emt 0:01:21] [#]} Bb8 $146 {[%emt 0:10:46]} ({Predecessor:} 16... Re8 17. Rxe8+ Qxe8 18. Bxd5 cxd5 {½-½ (54) Bocharov,I (2563)-Tomashevsky,E (2705) St Petersburg 2018}) 17. Bc2 {[%emt 0:15:41]} Bf4 {[%emt 0:05:50]} 18. Qf3 {[%emt 0:10:57]} Nh4 {[%emt 0:06:24]} 19. Qd3 {[%emt 0:04:42]} g6 {[%emt 0:00:34]} 20. Nde2 $11 {[%emt 0:05:32]} Bxc1 {[%emt 0:01:08]} 21. Raxc1 {[%emt 0:03:13]} Qg5 {[%emt 0:01:13]} 22. c4 {[%emt 0:09:18]} Nb4 {[%emt 0:03:54]} 23. Qe3 {[%emt 0:06:15]} Qxe3 {[%emt 0:01:13]} 24. fxe3 {[%emt 0:00:14]} Nxc2 {[%emt 0:00:53]} 25. Rxc2 {[%emt 0:00:07]} Nf5 {[%emt 0:01:50]} 26. Kf2 {[%emt 0:02:28]} Be6 {[%emt 0:02:01]} 1/2-1/2